Cogmind - Beta 17 @@@ ROGUE MODE // 2026.07.05 @ 11:45:11 Player: blorx Result: Destroyed by YF-VBD(R) with Subdweller Machine Gun Performance ------------- Evolutions (0) 0 Regions Visited (2) 400 Robots Destroyed (29) 145 Value Destroyed (545) 545 Prototype IDs (0) 0 Alien Tech Used (0) 0 Bonus (0) 0 TOTAL SCORE: 1090 Bonus ------- None Cogmind --------- Core Integrity 0/250 Matter 275/300 Energy 250/250 System Corruption 5% Temperature Cool (0) Movement Rolling (95) Ox1 Location -10/Subcaves Parts ------- > --- POWER (1) -------- Ion Engine > --- PROPULSION (2) --- Wheel > --- UTILITY (2) ------ (None) > --- WEAPON (2) ------- Beamcaster Mining Claw > --- INVENTORY (5) ---- Ion Engine Mining Laser Mining Claw Piercing Trap Scrap Shield Fragment (46) Peak State ------------ > --- POWER ------------ Ion Engine > --- PROPULSION ------- Wheel Wheel > --- UTILITY ---------- Scrap Shield > --- WEAPON ----------- Beamcaster Mining Claw > --- INVENTORY -------- Ion Engine Mining Laser Mining Claw Piercing Trap Scrap Shield Fragment [Rating: 13] Favorites ----------- Power Ion Engine Engine Ion Engine Propulsion Light Treads Treads Light Treads Wheel Wheel Utility Small Storage Unit Device Seismic Detector Storage Small Storage Unit Processor Signal Interpreter Protection Scrap Shield Weapon Light Assault Rifle Energy Gun Small Laser Energy Cannon Beam Cannon Ballistic Gun Light Assault Rifle Special Weapon Mining Laser Slashing Weapon Mining Claw Build | -11 -10 -10 ------- Run | Yrd Mat Sub Slots Evolved . | . . . Power . | . . . Propulsion . | . . . Utility . | . . . Weapon . | . . . Parts Attached 34 | 8 21 5 Power 4 | 1 2 1 Engine 4 | 1 2 1 Core . | . . . Reactor . | . . . Propulsion 7 | 2 5 . Treads 4 | 2 2 . Leg . | . . . Wheel 3 | . 3 . Hover . | . . . Flight . | . . . Utility 9 | 3 5 1 Device 4 | 2 2 . Storage 3 | 1 2 . Processor 1 | . 1 . Hackware . | . . . Protection 1 | . . 1 Artifact . | . . . Weapon 14 | 2 9 3 Energy Gun 2 | . 1 1 Energy Cannon 2 | . 1 1 Ballistic Gun 8 | 2 5 1 Ballistic Cannon . | . . . Launcher . | . . . Special Weapon 1 | . 1 . Impact Weapon . | . . . Slashing Weapon 1 | . 1 . Piercing Weapon . | . . . Special Melee Weapon . | . . . Unidentified Prototypes . | . . . Parts Lost 6 | . 4 2 Power 1 | . 1 . Propulsion 3 | . 2 1 Utility 1 | . . 1 Weapon 1 | . 1 . Highest Loss Streak 4 | . 4 2 To Critical Strikes . | . . . Average Backups 7 | 4 8 4 Power . | . . 1 Propulsion . | . . . Utility 3 | . 3 . Weapon 2 | 1 2 2 Tool/Special . | . . . Unused Backups 12 | 1 4 7 Power 2 | . 1 1 Propulsion 1 | . 1 . Utility 4 | . 1 3 Weapon 4 | 1 . 3 Tool/Special 1 | . 1 . Average Slot Usage (%) 93 | . 96 84 Engine 13 | . 13 14 Treads 17 | . 22 . Wheel 7 | . 2 26 Device 6 | . 8 . Storage 11 | . 13 1 Processor 5 | . 6 . Protection 2 | . . 11 Energy Gun 3 | . 2 7 Energy Cannon 3 | . 2 3 Ballistic Gun 17 | . 21 3 Slashing Weapon 3 | . . 14 Peak Build Rating 13 | 8 8 13 Average Rating 7 | 6 7 10 On Entrance 5 | . 8 8 Avg Prop Armor Cover (%) . | . . . Naked Turns . | . . . Heaviest Build 33 | 13 30 33 Greatest Support 40 | 40 40 20 Greatest Overweight (x) 2 | . 2 2 Average Overweight (x) . | . . 1 Largest Inventory Capacity 15 | 8 15 15 Average Capacity 9 | 7 10 6 Most Carried 15 | 8 13 15 Average Carried 7 | 4 8 6 Final Capacity 15 | 8 15 5 Final Carried 13 | 8 13 5 Class Distribution -------------------- 92% | Mutant 7% | Scavenger-Mutant Dominant Class ---------------- Mutant | -10/Materials Mutant | -10/Subcaves Resources | -11 -10 -10 ----------- Run | Yrd Mat Sub Matter Collected 1061 | 311 683 67 Remotely . | . . . Salvage Created 856 | 117 703 36 Parts 58 | 12 39 7 Haulers Intercepted 2 | . 2 . Recyclers Shooed 3 | 1 2 . Parts Field Recycled . | . . . Retrieved Matter . | . . . Parts Self-Destructed 3 | . . 3 Prevented . | . . . Parts Restored . | . . . Kills | -11 -10 -10 ------- Run | Yrd Mat Sub Combat Hostiles Destroyed 18 | . 17 1 Guns 16 | . 15 1 Cannons 2 | . 2 . Classes Destroyed 7 | 2 4 1 Worker 3 | . 3 . Tunneler 5 | 3 2 . Hauler 2 | . 2 . Recycler 1 | 1 . . Swarmer 6 | . 6 . Grunt 11 | . 11 . Subdweller 1 | . . 1 Best Kill Streak 4 | 2 4 1 Combat Bots Only 4 | . 4 1 Max Kills in Single Turn 1 | 1 1 1 Gunslinging . | . . . Exploded . | . . . Melee . | . . . Uniques/NPCs Destroyed . | . . . Combat | -11 -10 -10 -------- Run | Yrd Mat Sub Hostile Shots Fired 159 | . 120 39 Missed 35 | . 21 14 Hits 124 | . 99 25 Projectile 124 | . 99 25 AOE 1 | . . 1 Damage Taken 1722 | . 1065 657 Core 254 | . 115 139 Absorbed by Shields . | . . . Core Remaining (%) 100 | 100 . . Volleys Fired 137 | 24 99 14 Largest 2 | 2 2 1 Hottest 100 | 40 100 75 Shots Fired 253 | 48 190 15 Gun 223 | 48 160 15 Cannon 29 | . 29 . Launcher . | . . . Special 1 | . 1 . Kinetic 194 | 48 142 4 Thermal 59 | . 48 11 Explosive . | . . . Electromagnetic . | . . . Robot Hit Streak 15 | 15 13 3 Robot Miss Streak 4 | 2 4 1 Penetration Max . | . . . Secondary Targets 2 | . 2 . Max Gunslinging Chain 1 | . 1 . Shots Hit Robots 174 | 36 123 15 Core Hits 58 | 10 44 4 Critical Kills 1 | . 1 . Critical Parts Destroyed . | . . . Critical Strikes 1 | . 1 . Destroy 1 | . 1 . Melee Attacks 25 | . 2 23 Impact . | . . . Slashing 25 | . 2 23 Piercing . | . . . Sneak Attacks 2 | . 2 . Combat Hostiles . | . . . Follow-up Attacks . | . . . Damage Inflicted 2011 | 278 1390 343 Guns 1300 | 278 909 113 Cannons 380 | . 380 . Explosions . | . . . Melee 328 | . 98 230 Ramming 3 | . 3 . Kinetic 1146 | 278 799 69 Thermal 534 | . 490 44 Explosive . | . . . Electromagnetic . | . . . Impact . | . . . Slashing 328 | . 98 230 Piercing . | . . . Highest Corruption 5 | . 5 5 Average Corruption 4 | . 3 5 Corruption Purged . | . . . Corruption Blocked . | . . . Effects 28 | . 17 11 Message Errors 5 | . 1 4 Matter Fused 6 | . 3 3 Heat Flow Errors 4 | . 3 1 Energy Discharges 5 | . 5 . Data Loss (minor) 4 | . 2 2 Misfires 2 | . 1 1 Alerts 1 | . 1 . Weapon Failures 1 | . 1 . Overload Shots . | . . . Overflow Damage 18 | . 18 . Projectiles 8 | . 8 . Explosions . | . . . Melee 10 | . 10 . Knockbacks . | . . . Impact . | . . . Kinetic . | . . . Secondary . | . . . Self-Inflicted Damage . | . . . Shots . | . . . Rammed 5 | . 5 . Targets Rammed 5 | . 5 . Kicked . | . . . Crushed . | . . . Highest Temperature 257 | . 236 257 Average Temperature 59 | . 57 107 Received Heat Transfer 627 | . 513 114 Siege Activations . | . . . Martial Activations . | . . . Shielding Activations . | . . . Robots Disrupted . | . . . Combat Hostiles . | . . . Robots Corrupted . | . . . Combat Hostiles . | . . . Parts Fried . | . . . Impact Corruptions . | . . . Robots Melted . | . . . Combat Hostiles . | . . . Parts Melted 4 | . 4 . Heat Transferred 1138 | . 1064 74 Parts Sabotaged . | . . . Parts Stolen . | . . . Parts Stripped . | . . . Power Chain Reactions . | . . . Alert | -11 -10 -10 ------- Run | Yrd Mat Sub Maximum Alert Level . | . . . Low Security (%) 100 | 100 100 . Level 1 . | . . . Level 2 . | . . . Level 3 . | . . . Level 4 . | . . . Level 5 . | . . . High Security . | . . . Max Security . | . . . Peak Influence 159 | 5 159 . Initial . | . . . Average 43 | 1 49 . Influence Increases 520 | 20 500 . Destroy 0b10 Robot/C 340 | . 340 . Destroy 0b10 Robot/NC 55 | 20 35 . Destroy Leader 64 | . 64 . Disable Machine 15 | . 15 . Destroy Structure 1 | . 1 . Lose Combat Pursuer 45 | . 45 . Influence Decreases 520 | 20 465 35 Entered New Map 18 | . . 18 Time Decay 462 | 20 425 17 Lost Part 40 | . 40 . Squads Dispatched 3 | . 3 . Investigation 3 | . 3 . Extermination . | . . . Reinforcement . | . . . Assault . | . . . Garrison . | . . . Intercept . | . . . Searches Triggered . | . . . Construction Impeded . | . . . Haulers Reinforced . | . . . Active Scanning Responses . | . . . Cargo Convoy Interrupts . | . . . Stealth | -11 -10 -10 --------- Run | Yrd Mat Sub Distress Signals . | . . . Communications Jammed . | . . . Distress Signals . | . . . Times Spotted 42 | . 29 13 Peak Tracking Total 6 | . 6 4 Tactical Retreats 2 | . 2 . Traps | -11 -10 -10 ------- Run | Yrd Mat Sub Traps Triggered 5 | . 5 . Indirectly . | . . . Trap Hack Attempts . | . . . Triggered . | . . . Disarmed . | . . . Reprogrammed . | . . . Reused . | . . . Traps Extracted . | . . . Installed . | . . . Triggered . | . . . Most Traps Carried 1 | . . 1 Machines | -11 -10 -10 ---------- Run | Yrd Mat Sub Machines Disabled 1 | . 1 . Max in Single Turn 1 | . 1 . Machines Repaired . | . . . Machines Dismantled . | . . . Machines Sabotaged . | . . . Overloaded Fab Kills . | . . . Hacking | -11 -10 -10 --------- Run | Yrd Mat Sub Machines Accessed 10 | . 10 . Terminals 8 | . 8 . Fabricators . | . . . Repair Stations 1 | . 1 . Recycling Units 1 | . 1 . Scanalyzers . | . . . Garrison Access . | . . . Total Hacks 21 | . 21 . Successful 2 | . 2 . Failed 19 | . 19 . Catastrophic 5 | . 5 . Database Lockouts . | . . . Manual 16 | . 16 . Terminals 17 | . 17 . Fabricators . | . . . Repair Stations 3 | . 3 . Recycling Units 1 | . 1 . Scanalyzers . | . . . Garrison Access . | . . . Terminal Hacks 1 | . 1 . Terminal Index 1 | . 1 . Fabricator Hacks . | . . . Repair Station Hacks . | . . . Recycling Unit Hacks 1 | . 1 . Retrieve Components 1 | . 1 . Scanalyzer . | . . . Garrison Access Hacks . | . . . Unauthorized Hacks . | . . . Terminals . | . . . Fabricators . | . . . Repair Stations . | . . . Recycling Units . | . . . Scanalyzers . | . . . Garrison Access . | . . . Data Cores Recovered . | . . . Used . | . . . Hacking Detections 10 | . 10 . Full Trace Events 3 | . 3 . Feedback Events . | . . . Feedback Blocked . | . . . Robot Schematics Acquired . | . . . Robots Built . | . . . Authchips . | . . . Time . | . . . Total Robot Build Rating . | . . . Part Schematics Acquired . | . . . Parts Built . | . . . Authchips . | . . . Time . | . . . Total Part Build Rating . | . . . Part Studies Acquired . | . . . Parts Repaired . | . . . Time . | . . . Parts Recycled . | . . . Recycled Matter . | . . . Retrieved Matter . | . . . Retrieved Components 9 | . 9 . Parts Scanalyzed . | . . . Part Schematics Acquired . | . . . Parts Damaged . | . . . Bothacking | -11 -10 -10 ------------ Run | Yrd Mat Sub Used RIF Installer . | . . . Robots Hacked . | . . . Non-combat . | . . . Combat . | . . . Robot Hacks Applied . | . . . Relay Couplers Released . | . . . Fabnet Peak Effective % . | . . . Robots Rewired . | . . . Allies Hacked . | . . . Hacks Repelled . | . . . Allies | -11 -10 -10 -------- Run | Yrd Mat Sub Total Allies . | . . . Largest Group . | . . . Highest-Rated Group . | . . . Highest-Rated Ally . | . . . Total Orders . | . . . Ally Attacks . | . . . Total Damage . | . . . Kills . | . . . Allies Corrupted . | . . . Allies Melted . | . . . Intel | -11 -10 -10 ------- Run | Yrd Mat Sub Active Infowar (turns) 1169 | 157 984 28 Sensors 89 | . 61 28 Seismic 1080 | 157 923 . Robot Analysis Total . | . . . Derelict Logs Recovered 2 | . . 2 Drone Launches . | . . . Drone Recoveries . | . . . Exploration | -11 -10 -10 ------------- Run | Yrd Mat Sub Turns Passed 2330 | 251 1647 432 Spaces Moved 1210 | 107 811 292 Core 4 | 4 . . Treads 712 | 103 609 . Legs . | . . . Wheels 494 | . 202 292 Hover . | . . . Flight . | . . . Fastest Speed 50 | 50 95 95 Average Speed 135 | 155 147 95 Slowest Speed 240 | 160 240 110 Overloaded Moves . | . . . Propulsion Burnouts . | . . . Robots Hopped . | . . . Potential Cave-ins . | . . . Cave-ins Triggered . | . . . Exploration Rate (%) 41 | 5 96 23 Regions Visited 2 Branch Regions 1 Pre-discovered Areas 1 | . . 1 Known Exits Taken 1 | . 1 . Unknown Exits Taken 1 | 1 . . Scrap Searched 2 | . . 2 Spaces Dug . | . . . Terrain Destroyed . | . . . Melee . | . . . Projectile . | . . . AOE . | . . . Terrain Rammed . | . . . Walls Destroyed . | . . . Machines Disabled . | . . . Actions | -11 -10 -10 --------- Run | Yrd Mat Sub Total 1627 | 153 1088 386 Wait 146 | . 110 36 Move 1208 | 106 810 292 Hop . | . . . Pick Up 34 | 11 17 6 Fast Attach 11 | 7 4 . Attach 4 | . 2 2 Detach . | . . . Swap 25 | 1 20 4 Drop 29 | 4 19 6 Fire 137 | 24 99 14 Melee 25 | . 2 23 Ram . | . . . Kick . | . . . Crush 5 | . 5 . Escape Stasis . | . . . Rewire . | . . . Trap . | . . . Miscellaneous 3 | . . 3 Route ------- -11/Scrapyard -10/Materials (discovered 5 exits: *Mat x3 / *Min / *Sub) -10/Subcaves (discovered 1 exit: [*Mat]) History --------- Turn | Location | Event 26 | -11/Scrapyard | Discovered new exit (range 15) 252 | -11/Scrapyard | Entered Materials 300 | -10/Materials | Build established: Mutant 795 | -10/Materials | Discovered new exit (range 3) 953 | -10/Materials | Discovered new exit (range 7) 1162 | -10/Materials | Discovered new exit (range 16) 1215 | -10/Materials | Identified exit to Materials 1375 | -10/Materials | Identified exit to Mines 1587 | -10/Materials | Lost 4 parts (1p2n1w) 1660 | -10/Materials | Discovered new exit (range 8) 1733 | -10/Materials | Identified exit to Subcaves 1782 | -10/Materials | Discovered exit to Materials (range 13) 1899 | -10/Materials | Entered Subcaves 1900 | -10/Subcaves | Approached by a straggling Scientist 1901 | -10/Subcaves | Learned Materials terminal intel 1955 | -10/Subcaves | Discovered new exit (range 11) 2000 | -10/Subcaves | Disturbed a concealed Subdweller 2058 | -10/Subcaves | Ambushed by swarm of Subdwellers 2061 | -10/Subcaves | Ambushed by Subdwellers from Twisted Machinery 2063 | -10/Subcaves | Ambushed by Subdwellers from Twisted Machinery 2261 | -10/Subcaves | Disturbed a concealed Subdweller 2273 | -10/Subcaves | Disturbed a concealed Subdweller 2276 | -10/Subcaves | Core integrity fell below 50% 2297 | -10/Subcaves | Core integrity fell below 20% 2331 | -10/Subcaves | Destroyed by YF-VBD(R) with Subdweller Machine Gun Last Messages --------------- Acquired 20 matter. DGI5FL6LJ/9RABT=FNUVREW7X6VMH=Q ZYM<>QIVRVN MOKWBDUL5T3%, System corrupted: Matter fused (-10). System corrupted: FCS attempts to trigger Beamcaster. System corrupted: Beamcaster misfires. PL#WD>> QKTF0/1E17M5M#%AF L9OAZ>SI System corrupted: Component data lost. RN-JH9(R) angrily emerges from the Twisted Machinery. IK-GPS(h) destroyed. 2Y-Q7I(g) destroyed. RN-JH9(R) affixes Scrap Shield Fragment to Scrap Shield. YF-VBD(R) angrily emerges from the Twisted Machinery. Wheel destroyed. RN-JH9(R) affixes Scrap Shield Fragment to Scrap Shield. System corrupted: Matter fused (-7). Scrap Shield destroyed. System corrupted: Matter fused (-8). Map ----- +----------------------------------------------------+ | ?????????????????????????????????????????? | | ?????????????????????????????????????????? | | ?????????????????????????????????????????? | | ?????????????????????????????????????????? | | ?????????????????????????????????????????? | | ?????????????????????????????????????????? | | ?????????????????????????????????????????? | | ?????????????????????????????????????????? | | ?????????????????????????????????????????? | | ????????????????????????????????####??#??? | | ???????????????????????????????? ??? ##? | | ??????????????????????????????## #### #? | | ??????????????????????????????# ##$"## #? | | ??????????????????????????????# ##"$$"# #? | | ????????????????????????????###"#"&$""# #? | | ??????????????????????????### ## $## ## | | ?????????????????????????## # ## # | | ?????????????????????##### | | ??????????????????####""" # # !] | | ??????????????????#"""" "##### !%! # # | | ??????????????????# "" ""##???## = #### | | ??????????????###### " ####?????## #??? | | ??????????????# #?## ""#????????#"#%=#??? | | ??????????????# #?## "###???????## [ #??? | | ??????????????# ### "" #????????## ##?? | | ??????????????##"@R ##???????# #?? | | ???????????????### #???????## ##?? | | ?????????????????# R "" #????????# ??? | | ????????????????? ##"""#????????# ?? | | ????????????????# ##?# ""#??????? #?? | | ???????????????? ##???# "??????# #?? | | ???????????????## ##?????# ??????# ?? | | ????????????????##????????# ?????# ##?? | | ??????????????????????????? ?"????"" ##??? | | ?????????????????????????????????? " ????? | | ?????????????????????????????????? " ????? | | ????????????????????????????????? " ????? | | ???????????????????????????????????" ????? | | ????????????????????????????????????#????? | | ?????????????????????????????????????????? | | ?????????????????????????????????????????? | | ?????????????????????????????????????????? | | ?????????????????????????????????????????? | | ?????????????????????????????????????????? | | ?????????????????????????????????????????? | | ?????????????????????????????????????????? | | ?????????????????????????????????????????? | | ?????????????????????????????????????????? | | ?????????????????????????????????????????? | | ?????????????????????????????????????????? | +----------------------------------------------------+ Best States ------------- Heat Dissipation 25 Energy Generation 10 Energy Capacity 250 Matter Stores 300 Matter Capacity 300 Sight Range 16 Robot Scan Range 14 Terrain Scan Density 10 Armor Coverage 800 Evasion (%) 41 Recoil Reduction 2 Item Schematics ----------------- None Robot Schematics ------------------ None Fabricated ------------ Nothing Repaired ---------- Nothing Studied --------- None Alien Tech Used ----------------- None Achievements -------------- Survival Of The Most Covered Challenges ------------ None Game ------ Seed SpectralThrusterSword Manual? 0 Play Time 00:42:01 Cumulative 17.5 hours Start 2026.07.05 @ 11:00:59 End 2026.07.05 @ 11:45:11 Sessions 1 Manual Loads 0 Difficulty Rogue Special Mode None Game No. 7 Rogue 7 Adventurer 0 Explorer 0 Win Type - Total 0 Types 0/0/0/0/0/0/0/0/0/0 Lore% 12 Gallery% 20 Achievement% 17 Wizard Run 0 Options --------- Layout 1 ASCII 0 Keyboard 0 Movement Numpad Keybinds 0 Fullscreen 1 Font 36/Smallcaps Map View 55x38 Zoom Use 0% Tactical HUD 0 Map Filters NONE Filters NONE Steam 1 RUN: 8461338b-868f-4787-aab7-b9f4e690a16a